bitfinex-derivatives/quotes_ETHF0:USTF0_20260316
["timestamp","ask_amount","ask_price","bid_price","bid_amount"]
[1773630314216,0.57591714,2183.7,2182.9,0.55602508]
[1773630315217,0.57591714,2183.7,2182.9,0.56130655]
[1773630316717,0.57591714,2183.7,2182.1,0.55602508]
[1773630317121,0.57265655,2183.5,2182.1,0.55602508]
[1773630317815,0.57265655,2183.5,2182.1,0.56173041]
[1773630324425,0.57223904,2183.3,2181.5,0.5721635]
[1773630324622,4.588,2183.4,2181.7,0.5721635]
[1773630324623,0.57223904,2183.1,2181.7,0.5721635]
[1773630324924,0.57223904,2182.9,2181.7,0.5721635]
[1773630325624,0.57223904,2182.9,2181.7,0.57685605]
[1773630326618,0.57223904,2182.8,2181.7,0.57685605]
[1773630330621,0.57223904,2182.8,2181.8,0.22913]
[1773630330822,0.57223904,2182.8,2181.9,0.5721635]
[1773630331022,0.57223904,2182.8,2182.1,0.5721635]
[1773630332128,0.57223904,2182.8,2181.8,0.5721635]
[1773630333227,0.57223904,2182.8,2181.7,0.57685605]
[1773630346738,0.57223904,2182.7,2181.7,0.57685605]
[1773630346935,6.005,2182.6,2181.8,0.22913]
[1773630347142,6.57723904,2182.6,2181.9,0.5721635]
[1773630347845,0.57223904,2182.5,2181.9,0.5721635]
[1773630352645,0.57223904,2182.5,2181.7,0.00469255]
[1773630352846,6.07971179,2182.5,2181.7,0.00469255]
[1773630353047,0.53842219,2182.4,2181.7,0.00469255]
[1773630353443,0.53842219,2182.4,2181.7,0.57392341]
[1773630354549,0.53842219,2182.4,2181.7,0.00469255]
[1773630355646,0.53842219,2182.4,2181.7,0.54566525]
[1773630362956,2.25781333,2182.3,2181.7,0.54566525]
[1773630363256,0.5771855,2182.2,2181.7,0.54566525]
[1773630363957,0.5771855,2182.0,2181.7,0.00469255]
[1773630364150,0.5771855,2182.0,2181.5,0.5409727]
[1773630364151,0.5771855,2181.7,2181.2,0.5409727]
[1773630364349,0.5771855,2181.5,2181.0,0.22442197]
[1773630365158,0.58197366,2181.5,2181.0,0.22948423]
[1773630369061,0.58197366,2181.5,2181.0,0.00506226]
[1773630369262,0.58197366,2181.5,2180.8,0.22456735]
[1773630370262,0.58197366,2181.5,2180.8,0.22872741]
[1773630371759,0.5771855,2181.7,2180.8,0.22872741]
[1773630371958,0.5771855,2181.7,2180.9,0.21810708]
[1773630372964,0.58223205,2181.7,2180.9,0.21810708]
[1773630374468,0.00504655,2181.7,2180.9,0.21810708]
[1773630375362,0.00504655,2181.7,2181.1,0.20301969]
[1773630375668,0.5771855,2182.0,2181.1,0.20301969]
[1773630376665,0.58165018,2182.0,2181.1,0.20301969]
[1773630379372,0.58165018,2182.0,2181.3,0.19712707]
[1773630379570,0.00446468,2182.0,2181.3,0.19712707]
[1773630381171,0.58165018,2182.0,2181.1,0.19542545]
[1773630382167,0.58165018,2182.0,2180.9,7.36067145]
[1773630382368,0.58165018,2182.0,2180.9,0.18760237]
[1773630382569,0.52590552,2181.9,2180.9,0.18760237]
[1773630390873,0.52590552,2181.9,2181.0,0.18785731]
[1773630391079,0.52590552,2181.8,2181.0,0.18785731]
[1773630392683,0.52590552,2181.7,2181.0,0.18785731]
[1773630392878,0.52590552,2181.7,2180.8,7.36511581]
[1773630393073,0.52590552,2181.7,2180.9,0.18788667]
[1773630393783,0.52590552,2181.7,2181.0,0.18402684]
[1773630401788,0.52590552,2181.7,2181.1,0.17942873]
[1773630401989,0.52590552,2181.7,2181.2,0.17942873]
[1773630406094,0.52590552,2181.9,2181.2,0.17942873]
[1773630406995,0.52590552,2181.9,2181.1,13.18006908]
[1773630407194,0.52590552,2181.9,2181.1,13.33143385]
[1773630407488,0.52590552,2181.9,2181.2,0.15136477]
[1773630407692,0.52590552,2181.9,2181.2,6.15836477]
[1773630409094,0.52590552,2181.9,2181.3,0.14687179]
[1773630411100,0.52590552,2181.9,2181.1,7.17306908]
[1773630411397,0.52590552,2181.9,2181.2,6.007]
[1773630411593,0.52590552,2181.9,2181.2,6.15395767]
[1773630413400,0.52590552,2181.9,2181.1,7.17306908]
[1773630413595,0.52590552,2181.9,2181.1,6.006]
[1773630413796,0.52590552,2181.9,2180.9,7.31999914]
[1773630413996,0.52590552,2181.9,2181.0,6.006]
[1773630414198,0.57691581,2181.8,2181.0,6.006]
[1773630414799,0.57691581,2181.8,2180.9,6.1530936]
[1773630415899,0.57691581,2181.8,2181.0,0.14591685]
[1773630421103,0.57691581,2181.8,2180.9,6.13801512]
[1773630421305,0.57691581,2181.8,2180.9,6.006]
[1773630421804,0.57691581,2181.8,2180.9,6.13818932]
[1773630423106,0.57691581,2181.8,2180.9,0.13218932]
[1773630423301,0.57691581,2181.8,2180.9,6.13918932]
[1773630423501,0.57691581,2181.8,2180.9,6.007]
[1773630424099,0.57691581,2181.7,2180.9,6.007]
[1773630425208,0.57691581,2181.7,2180.9,6.13947161]
[1773630425505,0.57691581,2181.7,2181.0,0.13247161]
[1773630436319,0.57691581,2181.7,2180.8,0.00416006]
[1773630436821,0.57691581,2181.6,2180.8,0.00416006]
[1773630438922,0.57691581,2181.6,2180.8,0.14149009]
[1773630442826,0.57691581,2181.6,2180.8,6.14916484]
[1773630443025,0.57691581,2181.6,2180.8,0.00416006]
[1773630444928,0.57691581,2181.6,2180.8,0.13387882]
[1773630447430,0.57691581,2181.6,2180.8,0.00416006]
[1773630456636,0.55701332,2181.7,2180.5,0.13036015]
[1773630456833,0.55701332,2181.1,2180.4,0.80302756]
[1773630457737,0.55701332,2181.1,2180.4,0.80864205]
[1773630458337,0.55701332,2181.1,2180.5,0.57375756]
[1773630464748,0.55701332,2181.1,2180.4,0.00561449]
[1773630464953,0.55701332,2181.1,2180.4,0.57937205]
[1773630466245,0.55701332,2180.9,2180.4,0.00561449]
[1773630466848,0.55701332,2180.9,2180.4,0.57937205]
[1773630468151,0.55701332,2180.9,2180.4,0.00561449]
[1773630468350,0.55701332,2180.9,2180.4,0.57937205]
[1773630472953,0.55701332,2180.9,2180.4,0.00561449]
[1773630473255,1.68238261,2181.2,2180.5,0.53931881]
[1773630473457,0.56535794,2181.1,2180.4,0.00561449]
[1773630477152,0.56535794,2181.1,2180.4,0.56447629]
[1773630481359,0.60803039,2180.7,2180.1,0.5588618]
[1773630482360,0.60803039,2180.9,2180.1,0.5588618]
[1773630482553,0.60803039,2180.9,2180.3,0.5588618]
[1773630485665,0.60803039,2181.1,2180.5,0.5588618]
[1773630486863,0.60803039,2181.1,2180.4,6.008]
[1773630487366,0.60803039,2181.1,2180.4,6.5668618]
[1773630487760,0.60803039,2180.9,2180.2,0.5588618]
[1773630488064,0.60803039,2180.9,2180.3,6.008]
[1773630490065,0.60803039,2180.9,2180.3,6.5668618]
[1773630490258,0.60803039,2180.9,2180.4,0.5588618]
[1773630493466,0.60803039,2180.9,2180.3,6.008]
[1773630493666,0.60803039,2180.9,2180.3,6.5668618]
[1773630493965,0.60803039,2180.9,2180.4,0.5588618]
[1773630498271,0.60803039,2180.9,2180.2,0.5588618]
[1773630498568,0.60803039,2180.9,2180.2,6.5668618]
[1773630500063,0.60803039,2180.9,2180.2,6.008]
[1773630500270,0.60803039,2180.9,2180.3,0.5588618]
[1773630507575,0.60803039,2180.9,2180.1,0.70487277]
[1773630507772,0.60803039,2180.9,2180.2,6.008]
[1773630507973,0.60803039,2180.9,2180.3,0.6991641]
[1773630510779,0.60803039,2180.9,2180.2,0.6991641]
[1773630510976,0.60803039,2180.9,2180.1,6.71387277]
[1773630511477,0.6769528,2180.7,2180.1,6.71387277]
[1773630511677,0.6769528,2180.7,2180.1,0.70487277]
[1773630512980,0.6769528,2180.7,2179.4,0.6991641]
[1773630512981,0.6769528,2180.1,2179.4,0.6991641]
[1773630513186,0.6769528,2179.9,2179.3,0.6991641]
[1773630513484,0.6769528,2179.5,2178.9,0.6991641]
[1773630513874,0.68036158,2179.5,2178.9,0.70366122]
[1773630517882,5.2,2180.5,2178.9,0.70366122]
[1773630517883,0.6769528,2179.9,2179.1,0.6991641]
[1773630518087,0.6769528,2179.9,2179.3,0.6991641]
[1773630519081,0.68153622,2179.9,2179.3,0.6991641]
[1773630521382,0.6769528,2180.1,2179.3,0.6991641]
[1773630521583,0.6769528,2180.1,2179.5,0.6991641]
[1773630522386,0.0046694,2180.1,2179.5,0.6991641]
[1773630522982,0.6816222,2180.1,2179.5,0.6991641]
[1773630524978,0.00363833,2180.1,2179.5,0.6991641]
[1773630528293,0.68059113,2180.1,2179.5,0.6991641]
[1773630528594,0.68059113,2180.1,2179.6,0.6991641]
[1773630529594,0.6769528,2180.7,2179.9,0.6991641]
[1773630530592,0.68171967,2180.7,2179.9,0.6991641]
[1773630532001,0.68171967,2180.7,2180.1,0.73348946]
[1773630533000,0.00476687,2180.7,2180.1,0.73348946]
[1773630534098,0.74168727,2180.8,2180.1,0.73348946]
[1773630534099,0.74478047,2181.3,2180.5,0.72006039]
[1773630534794,0.74478047,2181.3,2180.7,0.72006039]
[1773630534994,0.74879613,2181.3,2180.7,0.7236307]
[1773630536001,0.00401566,2181.3,2180.7,0.7236307]
[1773630542505,0.74879613,2181.3,2180.7,0.7236307]
[1773630545007,0.00401566,2181.3,2180.7,0.7236307]
[1773630545608,0.74478047,2181.7,2180.7,0.7236307]
[1773630546604,0.74830256,2181.7,2180.7,0.7236307]
[1773630549810,0.74478047,2181.6,2180.7,0.7236307]
[1773630552010,0.74478047,2181.3,2180.5,0.72006039]
[1773630553108,0.74478047,2181.3,2180.5,0.72403147]
[1773630562215,0.79160967,2181.2,2180.5,0.72403147]
[1773630563410,0.79160967,2180.7,2179.9,9.58075581]
[1773630563615,0.79160967,2180.3,2179.6,0.10387632]
[1773630563810,0.79160967,2180.2,2179.2,0.49805893]
[1773630564407,0.79160967,2180.2,2179.2,0.50236385]
[1773630564614,0.79160967,2180.4,2179.4,0.49805893]
[1773630564816,0.79160967,2180.4,2179.6,0.50096003]
[1773630565817,0.79160967,2180.7,2179.8,0.50950955]
[1773630567514,0.79160967,2180.7,2179.9,0.22933]
[1773630567820,0.79160967,2181.0,2180.2,0.51380497]
[1773630568120,0.79160967,2181.0,2179.2,0.00430492]
[1773630568121,3.82228188,2181.6,2180.4,0.51380497]
[1773630568414,0.79160967,2181.4,2180.4,0.51380497]
[1773630572116,0.79160967,2181.4,2180.6,0.50980881]
[1773630572418,6.100081,2182.0,2180.2,6.009]
[1773630572419,0.84422802,2183.4,2181.4,5.63773]
[1773630572621,0.84422802,2183.4,2182.4,0.05577544]
[1773630572816,0.84422802,2183.4,2182.6,0.05577544]
[1773630573317,0.84790165,2183.4,2182.6,0.06113667]
[1773630573716,0.00367363,2183.4,2182.6,0.06113667]
[1773630575519,0.00367363,2183.4,2182.8,0.82187632]
[1773630577423,0.00367363,2183.4,2183.0,0.82187632]
[1773630577728,0.81264053,2183.4,2183.0,0.82187632]
[1773630578027,8.72443896,2183.4,2183.0,0.82187632]
[1773630578422,0.80898919,2183.5,2183.0,0.82187632]
[1773630578726,9.53342815,2183.5,2183.0,0.82187632]
[1773630579226,0.81488028,2183.5,2183.0,0.82187632]
[1773630579528,0.79160967,2183.8,2183.0,0.82187632]
[1773630579728,0.79160967,2184.5,2183.0,0.82187632]
[1773630580220,0.79160967,2184.2,2183.2,0.82187632]
[1773630580624,0.79160967,2184.0,2183.2,0.82187632]
[1773630581427,0.79160967,2183.9,2183.2,0.82187632]
[1773630581924,0.79160967,2184.7,2183.4,0.82187632]
[1773630582129,0.79160967,2184.7,2183.8,0.82187632]
[1773630583027,0.795087,2184.7,2183.8,0.82187632]
[1773630583428,0.795087,2184.7,2184.0,0.82187632]
[1773630585428,0.00347733,2184.7,2184.0,0.82187632]
[1773630585631,0.795087,2184.7,2184.0,0.82187632]
[1773630586136,0.795087,2184.7,2184.2,0.82187632]
[1773630586336,0.795087,2184.7,2184.2,0.82685043]
[1773630586538,0.00347733,2184.7,2184.2,0.82685043]
[1773630586729,0.795087,2184.7,2184.2,0.82685043]
[1773630586935,0.79160967,2184.3,2184.2,5.7313613]
[1773630587436,9.51604863,2184.3,2184.2,5.7313613]
[1773630587836,0.79160967,2184.2,2183.2,0.82187632]
[1773630588136,0.79160967,2184.2,2183.4,0.82187632]
[1773630588436,0.79160967,2183.9,2183.5,6.002]
[1773630588639,0.79160967,2184.6,2183.6,0.82187632]
[1773630588932,8.72443896,2184.3,2183.6,0.82187632]
[1773630589138,0.79160967,2184.2,2183.6,0.82187632]
[1773630589333,0.79160967,2184.2,2183.7,6.002]
[1773630589635,0.79160967,2183.9,2183.7,6.002]
[1773630589834,0.79160967,2184.6,2183.8,0.82187632]
[1773630590041,9.51604863,2184.3,2183.8,0.82187632]
[1773630590242,0.79160967,2184.3,2183.8,0.82187632]
[1773630590535,0.79160967,2184.2,2183.8,0.82187632]
[1773630590740,0.79160967,2184.2,2183.9,6.001]
[1773630591038,0.79160967,2184.2,2183.8,0.82187632]
[1773630591239,0.79160967,2184.2,2183.9,6.001]
[1773630591439,9.51604863,2184.1,2183.9,6.001]
[1773630591739,0.79160967,2184.1,2183.9,5.68883513]
[1773630591939,0.79160967,2184.1,2183.3,0.82187632]
[1773630591940,8.72443896,2184.0,2183.3,0.82187632]
[1773630592141,1.27242165,2184.0,2183.5,1.21070106]
[1773630592335,1.27242165,2184.6,2183.5,1.21070106]
[1773630592533,1.27242165,2184.3,2183.5,1.21070106]
[1773630593435,1.27242165,2184.2,2183.6,1.21070106]
[1773630593634,1.27242165,2184.2,2183.7,6.001]
[1773630593938,0.00347733,2184.7,2183.7,7.21170106]
[1773630593939,9.99686061,2184.1,2183.7,7.21170106]
[1773630594138,1.27242165,2184.1,2183.7,7.21170106]
[1773630594332,8.72443896,2184.0,2183.7,7.21170106]
[1773630594737,1.27242165,2184.1,2183.7,7.21170106]
[1773630594936,8.72443896,2184.0,2183.7,7.21170106]
[1773630595137,8.72443896,2184.0,2183.7,1.21070106]
[1773630595337,8.72443896,2183.9,2183.8,6.001]
[1773630595540,1.23502957,2183.9,2183.8,3.65407194]
[1773630596041,8.72443896,2183.9,2183.8,3.65407194]
[1773630597837,1.23502957,2183.8,2183.2,0.00379278]
[1773630598043,1.23502957,2183.8,2183.3,7.21159379]
[1773630598245,1.23502957,2183.8,2183.4,1.21059379]
[1773630598442,1.23502957,2184.6,2183.4,1.21059379]
[1773630598838,1.23502957,2184.0,2183.4,1.21059379]
[1773630599239,1.23502957,2184.6,2183.4,1.21059379]
[1773630599440,1.23502957,2184.3,2183.4,1.21059379]
[1773630599845,9.95946853,2184.2,2183.4,1.21059379]
[1773630600144,1.23502957,2184.2,2183.6,1.21059379]
[1773630600538,1.23502957,2184.0,2183.4,1.21059379]
[1773630600734,1.23502957,2184.0,2183.5,6.0]
[1773630600940,9.95946853,2183.7,2183.5,6.0]
[1773630601140,1.23502957,2183.7,2183.5,6.0]
[1773630601341,1.23502957,2184.6,2183.5,6.0]
[1773630601645,1.23502957,2183.9,2183.5,7.21059379]
[1773630601942,1.23502957,2183.8,2183.5,7.21059379]
[1773630602139,1.23502957,2184.6,2183.5,7.21059379]
[1773630602340,1.23502957,2184.6,2183.6,7.21059379]
[1773630602543,1.23502957,2184.0,2183.6,7.21059379]
[1773630602937,8.72443896,2183.7,2183.6,6.0]
[1773630603338,1.23502957,2183.6,2183.2,1.21438657]
[1773630603538,9.95946853,2183.6,2183.3,7.21059379]
[1773630603836,1.23502957,2183.6,2183.3,7.21059379]
[1773630604042,8.72443896,2183.5,2183.3,7.21059379]
[1773630604540,8.72443896,2183.4,2183.3,7.21059379]
[1773630604843,7.76666903,2183.4,2183.3,7.21059379]
[1773630605443,1.30124856,2184.0,2183.3,6.0]
[1773630605638,1.41787963,2184.6,2183.4,0.0648255]
[1773630605843,1.41787963,2184.6,2183.5,0.06047729]
[1773630606444,1.41787963,2184.6,2183.6,6.06047729]
[1773630606746,1.41787963,2184.6,2183.7,0.53594536]
[1773630609547,1.45570637,2184.4,2183.5,5.70076921]
[1773630609744,1.4554808,2184.2,2183.2,0.00379278]
[1773630610045,1.4554808,2184.0,2183.2,0.00379278]
[1773630610351,1.4554808,2184.0,2183.2,0.51697451]
[1773630610850,1.4554808,2184.0,2183.2,0.00379278]
[1773630611051,1.4554808,2184.0,2183.2,6.00379278]
[1773630611648,1.4554808,2184.0,2183.2,0.00379278]
[1773630612049,1.4554808,2184.0,2182.9,0.52326099]
[1773630612050,1.4554808,2184.0,2183.1,6.0]
[1773630612353,1.4554808,2184.0,2183.1,7.21059379]
[1773630613041,1.4554808,2184.0,2183.1,7.21617768]
[1773630613241,1.4554808,2184.0,2183.2,1.21059379]
[1773630613541,1.4554808,2184.0,2183.1,6.00558389]
[1773630613746,1.4554808,2184.0,2183.2,6.0]
[1773630614356,1.4554808,2184.0,2183.1,6.00658389]
[1773630615652,1.4554808,2184.0,2183.1,0.00558389]
[1773630615854,1.4554808,2184.0,2183.2,6.001]
[1773630620557,1.23502957,2183.8,2182.6,7.12596152]
[1773630620755,1.23502957,2183.6,2182.8,1.21059379]
[1773630620963,1.23502957,2183.6,2183.0,1.21059379]
[1773630621460,1.23502957,2183.6,2183.1,6.001]
[1773630621660,1.23502957,2183.6,2183.1,6.00620143]
[1773630623361,1.70541591,2184.0,2183.2,1.25127753]
[1773630623563,1.70541591,2183.8,2183.2,1.25127753]
[1773630623762,1.70541591,2183.8,2183.3,6.001]
[1773630625464,1.70541591,2183.8,2183.1,1.25077317]
[1773630625666,1.70541591,2183.8,2183.2,6.001]
[1773630626565,1.70541591,2183.8,2183.1,1.25077317]
[1773630626761,1.70541591,2183.8,2183.2,6.001]
[1773630626962,1.70541591,2183.8,2183.2,7.23501407]
[1773630628760,1.70541591,2183.8,2183.2,1.23401407]
[1773630628966,1.70541591,2183.8,2183.2,6.002]
[1773630630065,1.70541591,2183.8,2183.1,0.00520143]
[1773630630265,1.70541591,2183.8,2183.2,6.002]
[1773630632164,1.70541591,2183.8,2183.2,7.21543301]
[1773630633067,1.70541591,2184.2,2183.3,1.20905299]
[1773630633268,1.70541591,2184.0,2183.3,1.20905299]
[1773630634164,1.70541591,2184.4,2183.3,1.20905299]
[1773630634466,1.70541591,2184.2,2183.3,1.20905299]
[1773630634658,1.70541591,2184.2,2183.5,1.20010548]
[1773630635261,1.70541591,2184.2,2183.6,6.002]
[1773630636067,1.70541591,2184.2,2183.6,7.18233024]
[1773630636267,1.70541591,2184.2,2183.7,1.18033024]
[1773630637368,1.70541591,2184.2,2183.6,7.17583224]
[1773630637872,1.70541591,2184.2,2183.7,1.16992688]
[1773630638273,1.70541591,2184.2,2183.6,6.002]
[1773630638474,1.70541591,2184.2,2183.5,1.16992688]
[1773630638672,1.70541591,2184.2,2183.6,7.16665733]
[1773630638972,1.70541591,2184.2,2183.4,1.16565733]
[1773630639273,1.70541591,2184.0,2183.2,6.001]
[1773630640071,1.70541591,2184.0,2183.1,1.17085876]
[1773630640272,1.70541591,2183.8,2183.2,6.001]
[1773630641870,1.70541591,2183.8,2183.1,0.00520143]
[1773630642075,1.70541591,2183.8,2183.1,6.00620143]
[1773630642770,1.70541591,2183.8,2183.1,7.16815219]
[1773630642971,1.70541591,2183.8,2183.2,1.16195076]
[1773630643172,1.70541591,2184.1,2183.2,1.16195076]
[1773630643375,1.70541591,2183.9,2183.2,1.16195076]
[1773630643572,1.70541591,2184.0,2183.2,1.16195076]
[1773630647978,1.70541591,2184.0,2183.4,1.18157305]
[1773630650284,1.70541591,2184.5,2183.4,1.18157305]
[1773630650582,1.70541591,2184.3,2183.4,1.18157305]
[1773630651886,1.70541591,2184.3,2183.5,6.001]
[1773630652678,1.70541591,2184.3,2183.4,1.18157305]
[1773630652884,1.70541591,2184.3,2183.5,6.001]
[1773630653488,1.70541591,2184.3,2183.4,1.18157305]
[1773630653686,1.60577958,2184.1,2183.2,7.17121013]
[1773630654087,1.60577958,2184.1,2183.2,1.17021013]
[1773630654288,1.60577958,2184.1,2183.3,7.16710523]
[1773630655090,1.60577958,2184.1,2183.3,1.16610523]
[1773630655389,1.60577958,2184.1,2183.3,7.16710523]
[1773630659586,1.60577958,2184.1,2183.3,1.16610523]
[1773630659886,1.60577958,2184.1,2183.3,7.16710523]
[1773630660090,1.60577958,2184.1,2183.3,1.16610523]
[1773630660288,1.60577958,2184.1,2183.3,7.16710523]
[1773630660784,1.60577958,2184.1,2183.1,1.1640217]
[1773630660978,1.60577958,2184.1,2183.2,6.001]
[1773630661184,1.63549146,2183.9,2183.2,7.15982027]
[1773630661688,1.63549146,2183.9,2183.3,1.18081456]
[1773630662785,1.63549146,2183.9,2183.1,1.18345604]
[1773630662990,1.63549146,2183.9,2183.2,6.001]
[1773630663288,1.63549146,2183.9,2183.2,7.17925461]
[1773630663488,1.63549146,2183.9,2183.3,1.17825461]
[1773630666087,1.63549146,2183.9,2183.2,1.17284673]
[1773630666383,1.63549146,2183.9,2183.2,7.17384673]
[1773630668193,1.63549146,2183.9,2183.1,0.00520143]
[1773630668391,1.63549146,2183.7,2182.6,1.16242562]
[1773630668590,3.83244518,2184.0,2182.6,1.16242562]
[1773630668591,1.63549146,2183.5,2182.6,1.16242562]
[1773630669396,1.63549146,2183.5,2182.6,1.16805139]
[1773630675307,1.63549146,2183.5,2182.7,7.14545584]
[1773630675710,1.63549146,2183.5,2182.8,1.13854851]
[1773630680208,1.63549146,2183.5,2182.8,7.14054851]
[1773630680712,1.63549146,2183.5,2182.8,1.13854851]
[1773630680911,1.63549146,2183.5,2182.8,7.14054851]
[1773630681614,1.63549146,2183.5,2182.6,1.11519688]
[1773630681911,1.63549146,2183.5,2182.6,7.11719688]
[1773630682611,1.63549146,2183.5,2182.7,1.11237648]
[1773630684413,1.53980396,2183.8,2182.7,1.11237648]
[1773630684808,1.53980396,2183.8,2182.8,1.09387907]
[1773630685314,1.53980396,2183.8,2182.8,1.32289907]
[1773630685908,3.83244518,2184.3,2182.8,1.32289907]
[1773630685909,1.53980396,2184.2,2182.8,1.32289907]
[1773630686107,1.53980396,2184.0,2182.8,1.32289907]
[1773630686709,1.53980396,2184.0,2183.1,1.26997619]
[1773630686910,1.53980396,2184.0,2183.3,1.26997619]
[1773630690216,1.53980396,2184.4,2183.3,1.26997619]
[1773630690417,1.53980396,2184.2,2183.3,1.26997619]
[1773630691017,1.53980396,2184.2,2183.4,7.22363804]
[1773630692516,1.53980396,2184.2,2183.5,1.21648537]
[1773630693817,1.53980396,2184.2,2183.4,6.002]
[1773630693818,1.53980396,2184.2,2183.4,1.20180637]
[1773630694023,1.53980396,2184.2,2183.5,6.002]
[1773630694316,1.53980396,2184.2,2183.5,7.20380637]
[1773630695815,1.53980396,2184.2,2183.0,1.19148073]
[1773630696017,1.53980396,2183.9,2182.8,7.19248073]
[1773630696216,1.67783599,2184.0,2182.8,7.19248073]
[1773630696217,1.53980396,2183.7,2182.8,7.19248073]
[1773630696616,1.53980396,2183.7,2182.9,1.19148073]
[1773630699024,1.53980396,2183.7,2182.7,1.16412841]
[1773630699223,1.53980396,2183.7,2182.8,6.002]
[1773630699424,1.53980396,2183.7,2182.8,7.16612841]
[1773630699816,1.53980396,2183.7,2182.8,1.16412841]
[1773630700026,1.53980396,2183.6,2182.6,1.18044476]
[1773630700321,1.53980396,2183.6,2182.6,7.18244476]
[1773630700715,1.53980396,2183.6,2182.7,1.16974576]
[1773630701520,1.53980396,2183.6,2182.6,5.17737153]
[1773630701723,1.53980396,2183.6,2182.7,0.00413119]
[1773630702527,1.53980396,2183.6,2182.7,0.00940834]
[1773630702824,1.54219954,2183.3,2182.7,0.00940834]
[1773630703227,1.54219954,2183.3,2182.7,0.00527715]
[1773630703822,1.54343551,2183.1,2182.7,0.00527715]
[1773630704027,1.54928003,2183.1,2182.5,6.13589553]
[1773630704926,1.54928003,2183.1,2182.5,6.14001223]
[1773630705330,1.54928003,2183.1,2182.6,0.12953463]
[1773630706025,1.54928003,2183.1,2182.5,0.0041167]
[1773630706225,1.54928003,2183.1,2182.5,6.0061167]
[1773630706426,1.54928003,2183.1,2182.5,6.12054518]
[1773630708027,0.00584452,2183.1,2182.6,0.10011204]
[1773630708225,1.55671156,2183.1,2182.5,6.0061167]
[1773630709229,1.55671156,2183.1,2182.5,6.10244486]
[1773630709822,1.55671156,2183.1,2182.6,0.09165995]
[1773630711632,1.54908043,2183.3,2182.6,0.09165995]
[1773630712633,1.55431004,2183.3,2182.6,0.09165995]
[1773630714034,1.55431004,2183.3,2182.6,6.09465995]
[1773630716532,1.55431004,2183.3,2182.7,0.06246845]
[1773630719036,1.55431004,2183.3,2182.7,6.06546845]
[1773630721840,1.55431004,2183.3,2182.8,0.03377639]
[1773630722334,0.00522961,2183.3,2182.8,0.03377639]
[1773630722642,1.58870947,2183.5,2182.8,0.03377639]
[1773630723439,1.59297055,2183.5,2182.9,0.0289213]
[1773630723643,1.58870947,2183.7,2183.1,0.39894604]
[1773630724543,1.59448885,2183.7,2183.1,0.39894604]
[1773630724838,1.58870947,2183.4,2182.7,6.003]
[1773630725042,1.58870947,2183.4,2182.8,0.41104113]
[1773630725943,1.58870947,2183.4,2182.7,6.003]
[1773630726143,1.58870947,2183.4,2182.7,6.39855301]
[1773630730245,1.58870947,2183.4,2182.7,0.39555301]
[1773630730448,1.58870947,2183.4,2182.7,6.39755301]
[1773630730840,1.58870947,2183.4,2182.8,0.36919869]
[1773630731040,1.58870947,2183.4,2182.6,0.36919869]
[1773630731237,1.58870947,2183.4,2182.7,6.002]
[1773630731746,1.58870947,2183.4,2182.7,6.36651967]
[1773630735648,1.58870947,2183.4,2182.7,0.36451967]
[1773630740450,1.58870947,2183.4,2182.8,0.32656201]
[1773630742554,1.39459068,2183.6,2182.9,0.31722174]
[1773630751767,1.39459068,2183.5,2182.7,0.2534298]
[1773630751962,1.39459068,2183.5,2182.8,6.002]
[1773630752265,1.39459068,2183.5,2182.8,6.2554298]
[1773630753367,1.39459068,2183.5,2182.9,0.24228854]
[1773630760777,1.39459068,2183.5,2182.6,0.19731568]
[1773630760970,1.39459068,2183.5,2182.7,6.002]
[1773630761574,1.39459068,2183.5,2182.7,6.19931568]
[1773630764082,1.39459068,2183.5,2182.8,0.18262097]
[1773630766679,1.39459068,2183.5,2182.8,6.002]
[1773630768688,1.39459068,2183.5,2182.8,6.16660906]
[1773630769986,1.39459068,2183.5,2182.9,0.1557261]
[1773630772987,1.40013839,2183.7,2182.9,0.1557261]
[1773630773187,1.40013839,2183.7,2183.0,0.14730089]
[1773630773584,1.40013839,2183.7,2183.1,6.14930089]
[1773630780193,1.40013839,2183.7,2183.1,0.14730089]
[1773630780394,1.40013839,2183.7,2183.1,6.14930089]
[1773630781096,1.40013839,2183.7,2182.8,7.25501191]
[1773630781296,1.40013839,2183.7,2182.8,6.002]
[1773630781497,1.40013839,2183.7,2182.6,0.12905039]
[1773630781798,1.3794596,2183.5,2182.7,6.002]
[1773630781992,1.3794596,2183.5,2182.7,6.12650992]
[1773630782596,1.3794596,2183.5,2182.8,0.12450992]
[1773630787203,1.3794596,2183.5,2182.8,6.002]
[1773630788099,1.3794596,2183.5,2182.6,0.11028524]
[1773630788603,1.3794596,2183.5,2182.7,6.002]
[1773630790101,1.3794596,2183.5,2182.7,6.1013286]
[1773630794406,1.3794596,2183.5,2182.8,0.12142166]
[1773630797305,1.3794596,2183.5,2182.8,6.12342166]
[1773630798807,1.3794596,2183.5,2182.9,0.09908971]
[1773630803312,1.3794596,2183.5,2182.8,6.002]
[1773630803509,1.3794596,2183.5,2182.8,6.08528109]
[1773630804011,1.3794596,2183.5,2182.8,0.08328109]
[1773630804213,1.3794596,2183.5,2182.8,6.002]
[1773630806510,1.3794596,2183.5,2182.8,6.07703646]
[1773630809318,1.3794596,2183.5,2182.9,0.06195949]
[1773630810619,1.35538203,2183.7,2182.9,0.06195949]
[1773630818623,1.35538203,2183.7,2182.7,7.12596152]
[1773630818830,1.35538203,2183.7,2182.8,6.002]
[1773630819323,1.35538203,2183.7,2182.4,6.58584455]
[1773630819324,1.33683651,2183.2,2182.4,6.58584455]
[1773630819524,1.33683651,2183.2,2182.1,6.0181789]
[1773630819727,1.33683651,2183.2,2182.2,6.002]
[1773630819924,1.33683651,2183.2,2182.0,0.55483297]
[1773630820227,1.33683651,2183.2,2182.1,0.55483297]
[1773630820427,1.33683651,2183.2,2182.1,6.55683297]
[1773630824027,1.33683651,2183.2,2182.2,0.5933132]
[1773630824824,1.33683651,2183.1,2182.2,0.5933132]
[1773630827135,1.33683651,2183.1,2182.3,0.58120012]
[1773630830538,1.33683651,2183.1,2182.5,0.57980644]
[1773630830834,1.33683651,2183.1,2182.7,0.57980644]
[1773630832833,1.22047597,2183.6,2182.8,1.67941132]
[1773630833041,1.22047597,2183.6,2182.9,0.61122193]
[1773630834134,2.89988729,2183.6,2182.8,0.60797398]
[1773630834434,1.32447322,2183.1,2182.4,0.60797398]
[1773630837941,6.003,2183.6,2182.4,0.60797398]
[1773630837942,1.32447322,2183.6,2182.9,0.58749227]
[1773630840842,1.32447322,2183.6,2183.1,0.59866006]
[1773630841345,1.32447322,2183.6,2182.9,0.59866006]
[1773630843046,1.32447322,2183.3,2182.6,0.3987266]
[1773630846652,1.32447322,2183.3,2182.4,1.67941132]
[1773630846952,1.41228383,2182.5,2182.0,0.22529826]
[1773630847452,1.41228383,2182.5,2181.9,0.22911]
[1773630848856,1.41228383,2182.5,2181.9,6.23211]
[1773630850556,1.41228383,2182.5,2182.0,6.003]
[1773630852052,1.42921638,2182.3,2181.7,6.003]
[1773630852252,1.42921638,2182.1,2181.6,6.003]